fUST/lending_fUST_20260409
["ID","MTS","AMOUNT","RATE_DAILY","PERIOD"]
[420163516,1775741448031,-499.0,0.00027992,30]
[420163518,1775741448041,-152.0,0.00027992,30]
[420163520,1775741448050,-161.0,0.00027992,30]
[420163521,1775741448059,-279.0,0.00027992,30]
[420163522,1775741448069,-234.0,0.00027992,30]
[420163523,1775741448078,-8389.08937935,0.00027996,2]
[420163524,1775741448087,-200000.0,0.00028,20]
[420163525,1775741448097,-671.48378166,0.00028,5]
[420163526,1775741448106,-2850.724161,0.00028,2]
[420163527,1775741448117,-6000.0,0.00028,5]
[420163528,1775741448126,-1117.57,0.00028,30]
[420163529,1775741448136,-531.0,0.00028003,2]
[420163530,1775741448145,-340.85,0.00028158,30]
[420163531,1775741448155,-500.0,0.00028188,2]
[420163532,1775741448165,-306.3282,0.000282,2]
[420163533,1775741448174,-166.8007,0.000282,3]
[420163534,1775741448184,-362.1,0.000282,2]
[420163535,1775741448194,-1416.013,0.000282,2]
[420163536,1775741448203,-1416.013,0.000282,2]
[420163537,1775741448213,-1416.01,0.000282,3]
[420163538,1775741448224,-1118.4601,0.000282,5]
[420163539,1775741448234,-216.82349343,0.000282,3]
[420163540,1775741448244,-1720.4642,0.000282,3]
[420163541,1775741448254,-451.0,0.00028219,2]
[420163542,1775741448264,-259.89,0.00028298,7]
[420163543,1775741448274,-630.35,0.00028326,7]
[420163544,1775741448284,-764.23,0.00028371,7]
[420163545,1775741448293,-262.25,0.0002839,30]
[420163546,1775741448304,-1550.0,0.00028399,7]
[420163547,1775741448313,-259.89,0.00028413,7]
[420163548,1775741448323,-1000.0,0.00028422,30]
[420163549,1775741448333,-1000.0,0.00028422,30]
[420163550,1775741448343,-579.0,0.00028422,30]
[420163551,1775741448352,-848.13983591,0.00028487,5]
[420163552,1775741448362,-287.06063777,0.00028493,29]
[420163553,1775741448372,-350.0,0.00028493,5]
[420163554,1775741448381,-1500.0,0.000285,2]
[420163555,1775741448391,-230.0,0.0002852,2]
[420163556,1775741448400,-6500.0,0.00028548,5]
[420163557,1775741448410,-250.0,0.00028557,11]
[420163558,1775741448419,-1368.37,0.00028564,7]
[420163559,1775741448428,-451.0,0.00028767,3]
[420163560,1775741448438,-215.19646,0.00028767,60]
[420163561,1775741448447,-1802.74,0.00028801,7]
[420163562,1775741448457,-1000.0,0.00028842,2]
[420163563,1775741448466,-8389.08937935,0.00028867,2]
[420163564,1775741448476,-725.5,0.000289,2]
[420163565,1775741448486,-2483.75,0.00028969,7]
[420163566,1775741448496,-218.0,0.00028992,30]
[420163567,1775741448505,-499.0,0.00028992,30]
[420163568,1775741448515,-152.0,0.00028992,30]
[420163569,1775741448524,-165.0780755,0.00028992,30]
[420163570,1775741448534,-279.0,0.00028992,30]
[420163571,1775741448543,-234.0,0.00028992,30]
[420163572,1775741448609,-200000.0,0.00029,20]
[420163573,1775741448618,-31874.65307112,0.00029,2]
[420163574,1775741448627,-1500.0,0.00029,2]
[420163575,1775741448637,-1134.63,0.00029006,7]
[420163576,1775741448647,-450.0,0.00029041,5]
[420163577,1775741448656,-263.0672281,0.00029084,2]
[420163578,1775741448666,-455.014393,0.00029084,2]
[420163579,1775741448675,-7000.0,0.00029096,5]
[420163580,1775741448685,-180.62,0.0002911,30]
[420163581,1775741448695,-685.18,0.00029112,7]
[420163582,1775741448705,-3325.33277681,0.00029125,2]
[420163583,1775741448715,-500.0,0.00029136,30]
[420163584,1775741448724,-222.48,0.00029136,30]
[420163585,1775741448734,-481.65,0.00029159,30]
[420163586,1775741448744,-638195.97,0.000292,10]
[420163587,1775741448754,-390456.42,0.000292,10]
[420163588,1775741448763,-451.0,0.00029315,4]
[420163589,1775741448772,-1500.0,0.000295,2]
[420163590,1775741448781,-184.0,0.00029507,2]
[420163591,1775741448791,-550.0,0.00029589,5]
[420163592,1775741448800,-7500.0,0.00029644,5]
[420163593,1775741448810,-8389.08937935,0.00029738,2]
[420163594,1775741448820,-724621.89818337,0.00029784,30]
[420163595,1775741449131,-117901.97466698,0.00029784,30]
[420163596,1775741449142,-21094.7471359,0.00029784,30]
[420163597,1775741449154,-61525.66649851,0.00029784,30]
[420163598,1775741449165,-1480.69323318,0.00029784,30]
[420163599,1775741449177,-335.40890616,0.00029784,30]
[420163600,1775741449219,-441.15,0.0002,2]
[420163601,1775741449228,-827.73875421,0.00021918,2]
[420163602,1775741449239,-4062.43394479,0.00021918,2]
[420163603,1775741449248,-3352.4475414,0.00029784,30]
[420163604,1775741449260,-987.62829401,0.00029784,30]
[420163605,1775741449607,-2116.377936,0.00021918,2]
[420163606,1775741450128,-223.55727617,0.00016849,2]
[420163607,1775741450138,-223.55727617,0.00017186,7]
[420163608,1775741450147,-223.55727617,0.00017692,14]
[420163609,1775741450156,-30.71817149,0.00021918,2]
[420163610,1775741450167,-500.0,0.00021918,2]
[420163612,1775741481231,-500.0,0.00012999,2]
[420163613,1775741481255,-500.0,0.00012999,2]
[420163614,1775741481271,-146.95386937,0.00012999,2]
[420163615,1775741529568,500.0,0.00012998,120]
[420163617,1775742002327,151.36,9e-05,2]
[420163643,1775742632627,-492.38115445,0.0001361,2]
[420163645,1775742632645,-198.81301559,0.0001361,2]
[420163647,1775742632655,-1000.0,0.00013699,2]
[420163650,1775742632666,-746.75342178,0.0001561,2]
[420163739,1775742641841,-68.85569886,0.0001561,2]
[420163740,1775742641851,-1013.0,0.00016437,2]
[420163741,1775742641862,-300.0,0.00016438,2]
[420163742,1775742641871,-940.02407125,0.0001761,2]
[420163743,1775742641880,-183.78374184,0.00017964,2]
[420163744,1775742641892,-146.21625816,0.00017964,2]
[420163745,1775742641903,-300.0,0.00018796,2]
[420163746,1775742641912,-300.0,0.00018796,2]
[420163747,1775742641922,-1000.0,0.00018797,2]
[420163748,1775742641932,-533.277,0.00018875,2]
[420163749,1775742641943,-185.0,0.00018875,2]
[420163750,1775742641952,-224.032,0.00019348,2]
[420163751,1775742641962,-487.15364081,0.0001943,2]
[420163752,1775742641972,-500.0,0.0001943,2]
[420163753,1775742641982,-500.0,0.0001943,2]
[420163754,1775742641991,-316.36909658,0.0001943,2]
[420163755,1775742642002,-158.52267555,0.0001943,2]
[420163756,1775742642011,-500.0,0.0001943,2]
[420163757,1775742642022,-500.0,0.0001943,2]
[420163758,1775742642032,-500.0,0.0001943,2]
[420163759,1775742642042,-500.0,0.0001943,2]
[420163760,1775742642051,-600.0,0.0001943,2]
[420163761,1775742642061,-500.0,0.0001943,2]
[420163762,1775742642071,-500.0,0.0001943,2]
[420163763,1775742642080,-500.0,0.0001943,2]
[420163764,1775742642090,-500.0,0.0001943,2]
[420163765,1775742642100,-500.0,0.0001943,2]
[420163766,1775742642110,-500.0,0.0001943,2]
[420163767,1775742642119,-1677.62139893,0.0001943,2]
[420163768,1775742642129,-500.0,0.0001943,2]
[420163769,1775742642139,-1677.62139893,0.0001943,2]
[420163770,1775742642149,-500.0,0.0001943,2]
[420163771,1775742642159,-1677.62139893,0.0001943,2]
[420163772,1775742642168,-500.0,0.0001943,2]
[420163773,1775742642178,-1677.62139893,0.0001943,2]
[420163774,1775742642188,-1677.62139893,0.0001943,2]
[420163775,1775742642198,-500.0,0.0001943,2]
[420163776,1775742642207,-500.0,0.0001943,2]
[420163777,1775742642217,-500.0,0.0001943,2]
[420163778,1775742642227,-1677.62139893,0.0001943,2]
[420163779,1775742642237,-1677.62139893,0.0001943,2]
[420163780,1775742642247,-500.0,0.0001943,2]
[420163781,1775742642258,-500.0,0.0001943,2]
[420163782,1775742642268,-500.0,0.0001943,2]
[420163783,1775742642277,-1677.62139893,0.0001943,2]
[420163784,1775742642287,-500.0,0.0001943,2]
[420163785,1775742642297,-1677.62139893,0.0001943,2]
[420163786,1775742642307,-1677.62139893,0.0001943,2]
[420163787,1775742642317,-1677.62139893,0.0001943,2]
[420163788,1775742642327,-1677.62139893,0.0001943,2]
[420163789,1775742642337,-1677.62139893,0.0001943,2]
[420163790,1775742642347,-1677.62139893,0.0001943,2]
[420163791,1775742642359,-1677.62139893,0.0001943,2]
[420163792,1775742642370,-1677.62139893,0.0001943,2]
[420163793,1775742642380,-1677.62139893,0.0001943,2]
[420163794,1775742642390,-1677.62139893,0.0001943,2]
[420163795,1775742642400,-500.0,0.0001943,2]
[420163796,1775742642410,-1865.00854386,0.0001943,2]
[420163797,1775742642420,-1865.00854386,0.0001943,2]
[420163798,1775742642430,-1865.00854386,0.0001943,2]
[420163799,1775742642440,-1865.00854386,0.0001943,2]
[420163800,1775742642449,-197.20230234,0.0001943,2]
[420163801,1775742642458,-500.0,0.0001943,2]
[420163802,1775742642468,-1865.00854386,0.0001943,2]
[420163803,1775742642478,-3863.89735682,0.00019431,2]
[420163805,1775742642491,-3762.27447946,0.00019431,2]
[420163807,1775742642503,-1341.25548051,0.00019431,2]
[420163819,1775742642604,-24325.42909771,0.00019431,2]
[420163821,1775742642616,-10854.22642804,0.00019431,2]
[420163822,1775742642627,-975.0,0.00019431,2]
[420163823,1775742642639,-558.0,0.00019431,2]
[420163824,1775742642651,-304.87826909,0.00019431,2]
[420163825,1775742642663,-707.65388584,0.00019431,2]
[420163826,1775742642679,-3942.5889044,0.00019431,2]
[420163827,1775742642693,-354.69225279,0.00019431,2]
[420163828,1775742642705,-2208.71175107,0.00019431,2]
[420163829,1775742642719,-5169.88088722,0.00019431,2]
[420163837,1775742644851,-3945.45875983,0.00019431,2]
[420163838,1775742644874,-17004.4085582,0.00019431,2]
[420163839,1775742644887,-19500.32325451,0.00019431,2]
[420163840,1775742644902,-5850.45657952,0.00019431,2]
[420163841,1775742644912,-200.0,0.00019432,2]
[420163842,1775742644922,-276.38668799,0.00019432,2]
[420163843,1775742644934,-4026.23083442,0.00019432,2]
[420163844,1775742644946,-1259.820833,0.00019432,2]
[420163845,1775742644961,-11317.58831437,0.00019432,2]
[420163846,1775742644974,-3522.26041875,0.00019432,2]
[420163847,1775742644986,-15810.53395227,0.00019432,2]
[420163848,1775742644998,-1909.34647797,0.00019432,2]
[420163850,1775742645009,-403.79477644,0.00019432,2]
[420163858,1775742646743,-494.293216,0.00019432,2]
[420163859,1775742646755,-17274.4098862,0.00019432,2]
[420163860,1775742646846,-6006.64888033,0.00019432,2]
[420163861,1775742646859,-1257.42635663,0.00019432,2]
[420163862,1775742646871,-242047.74330298,0.00019432,2]
[420163863,1775742646883,-5142.0,0.00019432,2]
[420163864,1775742646895,-799.65154018,0.00019432,2]
[420165189,1775743282007,-1000.0,0.00013699,2]
[420165190,1775743282041,-642.2576228,0.00013937,2]
[420165191,1775743282076,-153.0,0.00014022,2]
[420165192,1775743282108,-153.0,0.00014022,2]
[420165193,1775743282139,-153.0,0.00014022,2]
[420165194,1775743282171,-153.0,0.00014022,2]
[420165195,1775743282203,-153.0,0.00014022,2]
[420165196,1775743311182,-238.56553627,0.00014022,2]
[420165197,1775743311217,-296.72375706,0.00014175,2]
[420165198,1775743311290,-724.67903614,0.00014175,2]
[420165199,1775743340443,-229.28929333,0.00014175,2]
[420165200,1775743340470,-76.71070667,0.00014175,2]
[420165201,1775743369527,-229.28929333,0.00015132,3]
[420165260,1775743832995,-1000.0,0.00013699,2]
[420165263,1775743833006,-645.16753878,0.00014057,2]
[420165266,1775743833015,-733.18939032,0.00015132,3]
[420165270,1775743833028,-1665.61149887,0.00015132,3]
[420165273,1775743833038,-761.29769576,0.00016057,2]
[420165276,1775743833047,-2277.23430537,0.00016089,3]
[420165280,1775743833059,-624.94709871,0.00016089,3]
[420165283,1775743833069,-782.0,0.00016414,2]
[420165285,1775743833079,-3111.43876321,0.00017046,3]
[420165287,1775743833088,-3320.69612243,0.00018004,3]
[420165289,1775743833098,-877.42785274,0.00018057,2]
[420165291,1775743833108,-184.0,0.00018292,2]
[420165293,1775743833119,-500.0,0.0001896,2]
[420165295,1775743833129,-599.49016291,0.00018961,3]
[420165297,1775743833140,-1746.75342178,0.00018961,3]
[420165300,1775743833152,-1183.70989696,0.00018961,3]
[420165302,1775743833162,-579.49,0.00019,2]
[420165304,1775743833172,-7495.04586254,0.0001903,2]
[420165372,1775743839020,-987.55851277,0.00019029,2]
[420165373,1775743839031,-490.28299843,0.00019029,2]
[420165374,1775743839075,-9.71700157,0.00019029,2]
[420165375,1775743839085,-341.00754857,0.00019029,2]
[420165376,1775743839094,-221.4583676,0.00019029,2]
[420165377,1775743839104,-500.0,0.00019029,2]
[420165378,1775743839114,-987.55851277,0.00019029,2]
[420165379,1775743839125,-500.0,0.00019029,2]
[420165380,1775743839134,-987.55851277,0.00019029,2]
[420165381,1775743839144,-987.55851277,0.00019029,2]
[420165382,1775743839154,-475.85213024,0.00019029,2]
[420165383,1775743839164,-987.55851277,0.00019029,2]
[420165384,1775743839173,-500.0,0.00019029,2]
[420165385,1775743839184,-987.55851277,0.00019029,2]
[420165387,1775743839193,-500.0,0.00019029,2]
[420165389,1775743839203,-987.55851277,0.00019029,2]
[420165391,1775743839213,-500.0,0.00019029,2]
[420165393,1775743839222,-987.55851277,0.00019029,2]
[420165396,1775743839232,-500.0,0.00019029,2]
[420165399,1775743839242,-987.55851277,0.00019029,2]
[420165402,1775743839252,-987.55851277,0.00019029,2]
[420165404,1775743839261,-987.55851277,0.00019029,2]
[420165407,1775743839270,-500.0,0.00019029,2]
[420165410,1775743839280,-987.55851277,0.00019029,2]
[420165412,1775743839290,-503.05351913,0.00019029,2]
[420165414,1775743839299,-500.0,0.00019029,2]
[420165416,1775743839309,-168.9517238,0.00019029,2]
[420165418,1775743839319,-500.0,0.00019029,2]
[420165420,1775743839328,-987.55851277,0.00019029,2]
[420165421,1775743839338,-500.0,0.00019029,2]
[420165423,1775743839348,-500.0,0.00019029,2]
[420165425,1775743839358,-500.0,0.00019029,2]
[420165427,1775743839368,-500.0,0.00019029,2]
[420165429,1775743839378,-613.0203222,0.00019029,2]
[420165431,1775743839388,-500.0,0.00019029,2]
[420165433,1775743839398,-500.0,0.00019029,2]
[420165435,1775743839407,-500.0,0.00019029,2]
[420165437,1775743839417,-500.0,0.00019029,2]
[420165438,1775743839427,-500.0,0.00019029,2]
[420165440,1775743839438,-500.0,0.00019029,2]
[420165442,1775743839448,-500.0,0.00019029,2]
[420165444,1775743839458,-500.0,0.00019029,2]
[420165446,1775743839468,-500.0,0.00019029,2]
[420165448,1775743839478,-500.0,0.00019029,2]
[420165450,1775743839487,-500.0,0.00019029,2]
[420165452,1775743839497,-500.0,0.00019029,2]
[420165454,1775743839507,-500.0,0.00019029,2]
[420165455,1775743839516,-987.55851277,0.00019029,2]
[420165456,1775743839525,-500.0,0.00019029,2]
[420165458,1775743839535,-500.0,0.00019029,2]
[420165460,1775743839545,-500.0,0.00019029,2]
[420165462,1775743839555,-500.0,0.00019029,2]
[420165464,1775743839565,-500.0,0.00019029,2]
[420165466,1775743839574,-500.0,0.00019029,2]
[420165468,1775743839584,-500.0,0.00019029,2]
[420165470,1775743839593,-500.0,0.00019029,2]
[420165472,1775743839602,-987.55851277,0.00019029,2]
[420165474,1775743839612,-511.00478587,0.00019029,2]
[420165476,1775743839621,-987.55851277,0.00019029,2]
[420165477,1775743839631,-987.55851277,0.00019029,2]
[420165479,1775743839641,-987.55851277,0.00019029,2]
[420165481,1775743839651,-196502.14765999,0.0001903,2]
[420165483,1775743839677,-1302.88396548,0.0001903,2]
[420165538,1775743841664,-6423.94677741,0.0001903,2]
[420165539,1775743841718,-6085.88211101,0.0001903,2]
[420165540,1775743841729,-684.77,0.0001903,2]
[420165541,1775743841741,-671.77936835,0.0001903,2]
[420165565,1775743844055,-48086.74792775,0.0001903,2]
[420165566,1775743844243,-1563.83098617,0.0001903,2]
[420165615,1775743846932,-1492.51369523,0.0001903,2]
[420165624,1775743847011,-28281.18189423,0.0001903,2]
[420165627,1775743847023,-42313.98715382,0.0001913,2]
[420165629,1775743847034,-151.97493871,0.0001913,2]
[420165631,1775743847046,-300.1698,0.0001923,2]
[420165634,1775743847059,-200.0,0.00019231,2]
[420165636,1775743847071,-200.0,0.00019231,2]
[420165638,1775743847081,-500.0,0.0001933,2]
[420165640,1775743847092,-500.0,0.0001933,2]
[420165642,1775743847104,-500.0,0.0001933,2]
[420165645,1775743847115,-500.0,0.0001933,2]
[420165647,1775743847125,-500.0,0.00019331,2]
[420165649,1775743847135,-500.0,0.00019331,2]
[420165651,1775743847146,-500.0,0.00019331,2]
[420165653,1775743847157,-153.07638315,0.00019331,2]
[420165655,1775743847167,-1217.4688582,0.00019432,2]
[420165657,1775743847182,-166.0259475,0.00019432,2]
[420165659,1775743847193,-537.6845,0.0001977,2]
[420165662,1775743847204,-400.11470847,0.00019825,2]
[420165664,1775743847215,-3739.21084087,0.00019918,3]
[420165666,1775743847226,-458.56,0.0002,2]
[420165668,1775743847237,-201.31,0.0002,2]
[420165670,1775743847248,-873.63,0.0002,2]
[420165672,1775743847259,-299.0,0.0002,2]
[420165674,1775743847269,-993.55800972,0.00020057,2]
[420165677,1775743847280,-8718.0,0.00020477,7]
[420165679,1775743847291,-1525.0,0.00020477,7]
[420165681,1775743847302,-3928.77757184,0.00020875,3]
[420165683,1775743847313,-200.0,0.0002116,2]
[420165685,1775743847324,-200.0,0.00021194,2]
[420165687,1775743847335,-200.0,0.00021228,2]
[420165689,1775743847346,-200.0,0.00021262,2]
[420165692,1775743847356,-184.0,0.00021292,2]
[420165694,1775743847366,-200.0,0.00021296,2]
[420165696,1775743847376,-500.0,0.0002132,2]
[420165698,1775743847388,-200.0,0.0002133,2]
[420165700,1775743847398,-200.0,0.00021363,2]
[420165702,1775743847409,-200.0,0.00021397,2]
[420165704,1775743847420,-200.0,0.00021431,2]
[420165706,1775743847432,-166.0259475,0.0002146,2]
[420165709,1775743847443,-200.0,0.00021465,2]
[420165711,1775743847454,-190.0,0.00021729,2]
[420165713,1775743847464,-1000.0,0.00021868,2]
[420165715,1775743847475,-500.0,0.00021918,8]
[420165717,1775743847486,-500.0,0.00021918,8]
[420165719,1775743847497,-167.0,0.00022,2]
[420165721,1775743847508,-156.0,0.00022,2]
[420165723,1775743847518,-202.32033845,0.00022,7]
[420165725,1775743847529,-153.0,0.00022,2]
[420165728,1775743847540,-361.0,0.00022,2]
[420165730,1775743847551,-42353.09011385,0.00022,2]
[420165732,1775743847564,-44397.57319646,0.00022,2]
[420165734,1775743847577,-5158.77721565,0.00022,2]
[420166363,1775745033009,-336.40355685,0.00013699,2]
[420166414,1775745038331,-663.59644315,0.00013699,2]
[420166416,1775745038342,-579.61851684,0.00014384,2]
[420166418,1775745038352,-683.94984987,0.00016384,2]
[420166420,1775745038362,-300.0,0.00016438,2]
[420166422,1775745038373,-330.0,0.00017964,2]
[420166424,1775745038383,-417.69431065,0.00018384,2]
[420166433,1775745038457,-370.58687225,0.00018384,2]
[420166435,1775745038467,-2479.21912805,0.00018972,2]
[420166437,1775745038479,-1541.78087195,0.00018972,2]
[420166439,1775745038489,-5348.355665,0.00019,15]
[420166441,1775745038500,-184.0,0.00019075,2]
[420166443,1775745038509,-300.0,0.00019266,2]
[420166445,1775745038520,-300.0,0.00019266,2]
[420166447,1775745038530,-1524.72044442,0.00019267,2]
[420166450,1775745038540,-363.0,0.00019632,2]
[420166452,1775745038551,-324.44,0.0002,2]
[420166454,1775745038561,-258.02,0.0002,2]
[420166456,1775745038571,-326.6,0.0002,2]
[420166458,1775745038581,-892.61251593,0.00020384,2]
[420166460,1775745038591,-420.0,0.00020994,2]
[420166462,1775745038601,-200.0,0.00021452,2]
[420166464,1775745038612,-399.0,0.00021455,2]
[420166466,1775745038621,-200.0,0.00021486,2]
[420166468,1775745038631,-558.1219414,0.00021575,2]
[420166470,1775745038640,-7495.04586255,0.00021679,2]
[420166472,1775745038650,-151.97493871,0.00021689,2]
[420166474,1775745038659,-160.81545572,0.00021788,2]
[420166476,1775745038668,-500.0,0.00021788,2]
[420166478,1775745038677,-500.0,0.00021788,2]
[420166479,1775745038686,-500.0,0.00021788,2]
[420166481,1775745038696,-500.0,0.00021788,2]
[420166483,1775745038706,-352.32323258,0.00021788,2]
[420166485,1775745038716,-155.02085732,0.00021788,2]
[420166487,1775745038726,-200.0,0.00021789,2]
[420166489,1775745038738,-200.0,0.00021789,2]
[420166491,1775745038748,-564.78,0.00021789,2]
[420166493,1775745038758,-564.78,0.00021789,2]
[420166495,1775745038767,-564.78,0.00021789,2]
[420166497,1775745038776,-564.78,0.00021789,2]
[420166499,1775745038785,-564.78,0.00021789,2]
[420166501,1775745038796,-1031.76,0.00021789,2]
[420166503,1775745038805,-1243.0,0.0002179,2]
[420166505,1775745038815,-500.0,0.00021952,8]
[420166507,1775745038824,-214.53593346,0.00021973,2]
[420166509,1775745038834,-500.0,0.00021973,2]
[420166511,1775745038844,-250.0,0.00022,7]
[420166513,1775745038853,-500.0,0.00022,8]
[420166515,1775745038863,-83692.36601032,0.00022,2]
[420166721,1775745043284,-579.61851684,0.00014041,2]
[420166722,1775745043295,-683.94984987,0.00016041,2]
[420166723,1775745043305,-788.2811829,0.00018041,2]
[420166724,1775745043314,-200.0,0.00021181,2]
[420166725,1775745043324,-200.0,0.00021215,2]
[420166726,1775745043334,-200.0,0.00021249,2]
[420166727,1775745043345,-200.0,0.00021282,2]
[420166728,1775745043355,-200.0,0.00021316,2]
[420166729,1775745043365,-200.0,0.0002135,2]
[420166730,1775745043375,-200.0,0.00021384,2]
[420166731,1775745043385,-200.0,0.00021418,2]
[420166732,1775745043394,-7416.31982792,0.00022,2]
[420166738,1775745048948,-892.61251593,0.00020041,2]
[420166740,1775745048959,-7790.77202749,0.00022,2]
[420166742,1775745048972,-16415.05310804,0.00022,2]
[420166871,1775746232299,-156.0,0.00013699,2]
[420166872,1775746232309,-267.92082829,0.00013699,2]
[420166873,1775746232337,-193.91920593,0.00013699,2]
[420166874,1775746232348,-1000.0,0.00013699,2]
[420166875,1775746232357,-833.58788053,0.00014217,2]
[420166876,1775746232367,-1956.96090292,0.00014317,2]
[420166877,1775746232376,-544.97124037,0.00015699,2]
[420166878,1775746232385,-500.0,0.00016,5]
[420166879,1775746232395,-300.0,0.00016438,2]
[420166880,1775746232404,-599.39,0.00017,5]
[420166881,1775746232414,-628.10244653,0.00017699,2]
[420166882,1775746232424,-330.0,0.00017964,2]
[420166883,1775746232433,-699.00512894,0.00018019,2]
[420166884,1775746232443,-644.0,0.00019275,2]
[420166885,1775746232452,-363.0,0.00019632,2]
[420166886,1775746232462,-711.23365269,0.00019699,2]
[420166887,1775746232471,-300.0,0.00019999,2]
[420166888,1775746232481,-300.0,0.00019999,2]
[420166889,1775746232491,-295.88,0.0002,2]
[420166890,1775746232501,-203.06,0.0002,2]
[420166891,1775746232511,-983.77,0.0002,2]
[420166892,1775746232520,-166.42304324,0.000203,2]
[420166893,1775746232530,-588.06236659,0.000203,2]
[420166894,1775746232850,-76.96411418,0.000203,2]
[420166895,1775746232860,-151.39585617,0.00021368,2]
[420166896,1775746232870,-251.98445924,0.00021455,2]
[420167492,1775746241393,-147.01554076,0.00021455,2]
[420167493,1775746241405,-1103.02,0.00021486,2]
[420167494,1775746241416,-6212.65481562,0.00021548,10]
[420167495,1775746241461,-31189.30518438,0.00021548,10]
[420167496,1775746241471,-31168.3,0.00021558,10]
[420167497,1775746241482,-500.0,0.00021566,2]
[420167498,1775746241492,-500.0,0.00021566,2]
[420167499,1775746241501,-500.0,0.00021566,2]
[420167500,1775746241512,-500.0,0.00021566,2]
[420167501,1775746241522,-500.0,0.00021566,2]
[420167502,1775746241533,-500.0,0.00021566,2]
[420167503,1775746241543,-500.0,0.00021566,2]
[420167504,1775746241553,-500.0,0.00021566,2]
[420167505,1775746241564,-491.13010484,0.00021566,2]
[420167506,1775746241579,-500.0,0.00021566,2]
[420167507,1775746241588,-424.69371145,0.00021566,2]
[420167508,1775746241596,-500.0,0.00021566,2]
[420167509,1775746241606,-500.0,0.00021566,2]
[420167510,1775746241616,-500.0,0.00021566,2]
[420167511,1775746241626,-500.0,0.00021566,2]
[420167512,1775746241636,-617.189924,0.00021566,2]
[420167513,1775746241646,-500.0,0.00021566,2]
[420167514,1775746241656,-500.0,0.00021566,2]
[420167515,1775746241666,-500.0,0.00021566,2]
[420167516,1775746241676,-500.0,0.00021567,2]
[420167517,1775746241686,-188.5426984,0.00021567,2]
[420167518,1775746241697,-238.705284,0.00021567,2]
[420167519,1775746241707,-500.0,0.00021567,2]
[420167520,1775746241718,-500.0,0.00021567,2]
[420167521,1775746241729,-500.0,0.00021567,2]
[420167523,1775746241740,-500.0,0.00021567,2]
[420167525,1775746241752,-500.0,0.00021567,2]
[420167527,1775746241762,-500.0,0.00021567,2]
[420167529,1775746241772,-500.0,0.00021567,2]
[420167530,1775746241782,-500.0,0.00021567,2]
[420167531,1775746241792,-500.0,0.00021567,2]
[420167532,1775746241801,-500.0,0.00021567,2]
[420167533,1775746241811,-500.0,0.00021567,2]
[420167535,1775746241825,-500.0,0.00021567,2]
[420167536,1775746241835,-500.0,0.00021567,2]
[420167537,1775746241846,-500.0,0.00021567,2]
[420167538,1775746241856,-424.69944455,0.00021567,2]
[420167539,1775746241867,-500.0,0.00021567,2]
[420167540,1775746241877,-500.0,0.00021567,2]
[420167541,1775746241887,-500.0,0.00021567,2]
[420167542,1775746241897,-500.0,0.00021567,2]
[420167543,1775746241907,-500.0,0.00021567,2]
[420167544,1775746241917,-500.0,0.00021567,2]
[420167545,1775746241926,-565.0,0.00021567,2]
[420167546,1775746241936,-1116.45211229,0.00021567,2]
[420167547,1775746241946,-1116.45211229,0.00021567,2]
[420167548,1775746241955,-1116.45211229,0.00021567,2]
[420167549,1775746241964,-1116.45211229,0.00021567,2]
[420167550,1775746241974,-1116.45211229,0.00021567,2]
[420167551,1775746241985,-1116.45211229,0.00021567,2]
[420167552,1775746241994,-1116.45211229,0.00021567,2]
[420167553,1775746242005,-1116.45211229,0.00021567,2]
[420167554,1775746242015,-1116.45211229,0.00021567,2]